bitfinex/quotes_BTCUSD_20250417
["timestamp","ask_amount","ask_price","bid_price","bid_amount"]
[1744892615523,0.01179941,84750.0,84748.0,0.25789514]
[1744892615929,0.24778477,84751.0,84749.0,0.01093886]
[1744892616150,0.24778477,84751.0,84750.0,0.02190184]
[1744892616755,0.01179885,84754.0,84751.0,0.23598288]
[1744892616915,0.11944791,84754.0,84752.0,0.25788447]
[1744892617124,0.11944791,84754.0,84753.0,0.23597984]
[1744892617381,0.24776731,84757.0,84754.0,0.23597696]
[1744892617790,0.0004216,84758.0,84757.0,0.23596871]
[1744892618231,0.0004216,84758.0,84757.0,0.02190184]
[1744892618410,0.0004216,84758.0,84757.0,0.25787055]
[1744892618824,0.0004216,84758.0,84757.0,0.26880941]
[1744892620395,0.0024216,84758.0,84757.0,0.26880941]
[1744892620614,0.24138752,84758.0,84757.0,0.0338407]
[1744892621426,0.0054216,84758.0,84757.0,0.0338407]
[1744892622962,0.24138752,84758.0,84757.0,0.0338407]
[1744892623393,0.0054216,84758.0,84757.0,0.0338407]
[1744892623635,0.0054216,84758.0,84757.0,0.26980941]
[1744892624781,0.0054216,84758.0,84757.0,0.0338407]
[1744892626160,0.24138752,84758.0,84757.0,0.0338407]
[1744892626591,0.0054216,84758.0,84757.0,0.26980941]
[1744892634540,0.0004216,84758.0,84757.0,0.26880941]
[1744892634747,0.0014216,84758.0,84757.0,0.26880941]
[1744892634979,0.0024216,84758.0,84757.0,0.26880941]
[1744892635255,0.0014216,84758.0,84757.0,0.26880941]
[1744892635480,0.0004216,84758.0,84757.0,0.26880941]
[1744892635685,0.0014216,84758.0,84757.0,0.26880941]
[1744892635906,0.0024216,84758.0,84757.0,0.26880941]
[1744892636867,0.0024216,84758.0,84757.0,0.27700667]
[1744892638342,0.0014216,84758.0,84757.0,0.27700667]
[1744892638861,0.0004216,84758.0,84757.0,0.27700667]
[1744892639269,0.0004216,84758.0,84757.0,0.27800667]
[1744892639726,0.0004216,84758.0,84757.0,0.41436667]
[1744892643004,0.0004216,84758.0,84757.0,0.41536667]
[1744892643211,0.0004216,84758.0,84757.0,0.46096667]
[1744892643429,0.0004216,84758.0,84757.0,0.81550752]
[1744892643634,0.0004217,84763.0,84757.0,0.81550752]
[1744892643635,0.0004217,84763.0,84762.0,0.23595479]
[1744892643839,0.0004217,84763.0,84762.0,0.23831394]
[1744892644102,0.0004217,84763.0,84762.0,0.27115464]
[1744892644457,0.0004217,84763.0,84762.0,0.45939003]
[1744892644666,0.0004217,84763.0,84762.0,0.50539003]
[1744892645400,0.0004217,84763.0,84762.0,0.84539003]
[1744892646201,0.00054405,84763.0,84762.0,0.84739003]
[1744892646418,0.00154405,84763.0,84762.0,0.85139003]
[1744892648895,0.00154405,84763.0,84762.0,0.80539003]
[1744892649050,0.00154405,84763.0,84762.0,0.75936127]
[1744892649249,0.00154405,84763.0,84762.0,0.62300127]
[1744892649477,0.00154405,84763.0,84762.0,0.75936127]
[1744892651154,0.00154405,84763.0,84762.0,0.41936127]
[1744892651401,0.00154405,84763.0,84762.0,0.28300127]
[1744892652004,0.00154405,84763.0,84762.0,0.41936127]
[1744892660014,0.00154405,84763.0,84762.0,0.28300127]
[1744892660219,0.00154405,84763.0,84762.0,0.04705338]
[1744892661055,0.23749605,84763.0,84762.0,0.0368407]
[1744892662366,0.23649605,84763.0,84762.0,0.0328407]
[1744892662712,0.23649605,84763.0,84762.0,0.0348407]
[1744892663156,0.00054405,84763.0,84762.0,0.0348407]
[1744892663961,0.23649605,84763.0,84762.0,0.0348407]
[1744892665003,0.00054405,84763.0,84762.0,0.0348407]
[1744892666231,0.23649605,84763.0,84762.0,0.0348407]
[1744892666568,0.00154405,84763.0,84762.0,0.27079549]
[1744892668518,0.00154405,84763.0,84762.0,0.79238425]
[1744892669693,0.00154405,84763.0,84762.0,0.79338425]
[1744892669901,0.00254405,84763.0,84762.0,0.79938425]
[1744892671028,0.00254405,84763.0,84762.0,0.79638425]
[1744892671440,0.00254405,84763.0,84762.0,0.79938425]
[1744892672046,0.00254405,84763.0,84762.0,0.80759514]
[1744892673051,0.00254405,84763.0,84762.0,0.80859514]
[1744892673688,0.00254405,84763.0,84762.0,0.94399514]
[1744892676483,0.0008432,84764.0,84763.0,0.575952]
[1744892676707,0.00129363,84764.0,84763.0,0.69539991]
[1744892677180,0.00129363,84764.0,84763.0,0.72551264]
[1744892678001,0.00129363,84764.0,84763.0,0.7414515]
[1744892678236,0.00229363,84764.0,84763.0,0.7444515]
[1744892678441,0.00229363,84764.0,84763.0,0.75899235]
[1744892678646,0.00229363,84764.0,84763.0,0.80679235]
[1744892681541,0.00229363,84764.0,84763.0,1.22559235]
[1744892684107,0.00229363,84764.0,84763.0,1.36099235]
[1744892684960,4e-05,84767.0,84766.0,0.5904845]
[1744892685168,8.502e-05,84767.0,84766.0,1.19953425]
[1744892685598,8.502e-05,84767.0,84766.0,1.20774514]
[1744892686218,8.502e-05,84767.0,84766.0,1.218684]
[1744892686420,0.00108502,84767.0,84766.0,1.223684]
[1744892687606,0.00108502,84767.0,84766.0,1.226684]
[1744892688889,0.00108502,84767.0,84766.0,1.177784]
[1744892689093,0.00108502,84767.0,84766.0,1.314304]
[1744892689914,0.00108502,84767.0,84766.0,0.895504]
[1744892691267,0.00108502,84767.0,84766.0,0.896504]
[1744892692540,0.00108502,84767.0,84766.0,0.759984]
[1744892692747,0.00108502,84767.0,84766.0,0.896504]
[1744892693705,0.00108502,84767.0,84766.0,0.897504]
[1744892693896,0.00108502,84767.0,84766.0,0.945004]
[1744892694517,0.0004216,84770.0,84768.0,0.59047893]
[1744892694736,0.0004216,84770.0,84768.0,0.70992684]
[1744892694854,0.0004216,84770.0,84768.0,0.73182868]
[1744892695050,0.0004216,84770.0,84768.0,0.74003957]
[1744892696073,0.0004216,84770.0,84768.0,0.75097843]
[1744892696324,0.0004216,84770.0,84768.0,0.75297843]
[1744892697643,0.0034215,84769.0,84768.0,0.75697843]
[1744892698606,0.0004216,84788.0,84772.0,0.5904678]
[1744892698742,0.0004216,84788.0,84772.0,0.70991571]
[1744892698943,0.0004216,84788.0,84772.0,0.73181755]
[1744892699583,0.0004216,84788.0,84772.0,0.74002844]
[1744892699802,0.0004216,84788.0,84772.0,0.7509673]
[1744892700206,0.0495,84787.0,84772.0,0.7509673]
[1744892700614,0.0495,84787.0,84772.0,0.8874473]
[1744892700813,0.0462216,84783.0,84772.0,0.8874473]
[1744892701433,0.0014211,84773.0,84772.0,0.8924473]
[1744892701655,0.0014211,84773.0,84772.0,0.8934473]
[1744892701908,0.0014211,84773.0,84772.0,0.8974473]
[1744892702304,0.0004211,84773.0,84772.0,0.8924473]
[1744892702726,0.0014211,84773.0,84772.0,0.8994473]
[1744892708570,0.0014211,84773.0,84772.0,0.77999939]
[1744892708774,0.0014211,84773.0,84772.0,0.64351939]
[1744892708976,0.0014211,84773.0,84772.0,0.77999939]
[1744892710877,0.0462216,84783.0,84778.0,0.57591025]
[1744892711329,0.0462216,84783.0,84778.0,0.74250298]
[1744892711802,0.0462216,84783.0,84778.0,0.75137746]
[1744892712204,0.0462216,84783.0,84778.0,0.76431632]
[1744892713103,0.0462216,84783.0,84778.0,0.76931632]
[1744892715117,0.0561655,84779.0,84778.0,0.76931632]
[1744892715328,0.0561655,84779.0,84778.0,0.76044184]
[1744892716339,0.0561655,84779.0,84778.0,0.62396184]
[1744892716635,0.0561655,84779.0,84778.0,0.04805159]
[1744892717006,0.06160933,84779.0,84778.0,0.0398407]
[1744892717605,0.06160933,84779.0,84778.0,0.27575095]
[1744892718025,0.06160933,84779.0,84778.0,0.27375095]
[1744892718356,0.06160933,84779.0,84778.0,0.27575095]
[1744892718789,0.06160933,84779.0,84778.0,0.27375095]
[1744892718996,0.06160933,84779.0,84778.0,0.26875095]
[1744892719181,0.06160933,84779.0,84778.0,0.27175095]
[1744892723692,0.01360933,84779.0,84778.0,0.27175095]
[1744892724100,0.0081655,84779.0,84778.0,0.27175095]
[1744892726737,0.01354395,84779.0,84778.0,0.27175095]
[1744892726943,0.29555142,84779.0,84778.0,0.0358407]
[1744892727293,0.34435142,84779.0,84778.0,0.0358407]
[1744892727704,0.46379933,84779.0,84778.0,0.0358407]
[1744892728121,0.46379933,84779.0,84778.0,0.0348407]
[1744892728323,0.46479933,84779.0,84778.0,0.0348407]
[1744892728739,0.46479933,84779.0,84778.0,0.02190184]
[1744892728941,0.46379933,84779.0,84778.0,0.02190184]
[1744892729155,0.46479933,84779.0,84778.0,0.02190184]
[1744892729370,0.34735142,84779.0,84778.0,0.02190184]
[1744892729571,0.34635142,84779.0,84778.0,0.02190184]
[1744892729771,0.34835142,84779.0,84778.0,0.02190184]
[1744892730800,0.34835142,84779.0,84778.0,0.03284843]
[1744892731583,0.46779933,84779.0,84778.0,0.03284843]
[1744892732595,0.46779933,84779.0,84778.0,0.02190184]
[1744892733220,0.18579186,84779.0,84778.0,0.02190184]
[1744892733422,0.06634395,84779.0,84778.0,0.25781209]
[1744892733943,0.06634395,84779.0,84778.0,0.02190184]
[1744892734170,0.06634395,84779.0,84778.0,0.25781209]
[1744892734872,0.06134395,84779.0,84778.0,0.25781209]
[1744892735298,0.01254395,84779.0,84778.0,0.25781209]
[1744892735563,0.01254395,84779.0,84778.0,0.26875463]
[1744892735803,0.0071655,84779.0,84778.0,0.26875463]
[1744892736281,0.01240392,84779.0,84778.0,0.26975463]
[1744892736519,0.0071655,84779.0,84778.0,0.26975463]
[1744892737230,0.0051655,84779.0,84778.0,0.26975463]
[1744892737489,0.0031655,84779.0,84778.0,0.27075463]
[1744892738396,0.0031655,84779.0,84778.0,0.26995212]
[1744892739068,0.00840392,84779.0,84778.0,0.26995212]
[1744892739303,0.0031655,84779.0,84778.0,0.26995212]
[1744892739512,0.00840392,84779.0,84778.0,0.26995212]
[1744892739717,0.0031655,84779.0,84778.0,0.26995212]
[1744892739942,0.00840392,84779.0,84778.0,0.26995212]
[1744892740063,0.0031655,84779.0,84778.0,0.26995212]
[1744892740268,0.00840392,84779.0,84778.0,0.26995212]
[1744892742508,0.0031655,84779.0,84778.0,0.26995212]
[1744892743280,0.00841647,84779.0,84778.0,0.26995212]
[1744892744466,0.00841647,84779.0,84778.0,0.03404187]
[1744892744616,0.24432394,84779.0,84778.0,0.03404187]
[1744892745021,0.29082394,84779.0,84778.0,0.03404187]
[1744892750901,0.33752394,84779.0,84778.0,0.03404187]
[1744892751338,0.33752394,84779.0,84778.0,0.03304187]
[1744892752225,0.05511647,84779.0,84778.0,0.03304187]
[1744892753976,0.00841647,84779.0,84778.0,0.26995212]
[1744892754217,0.0031655,84779.0,84778.0,0.26995212]
[1744892754457,0.0031655,84779.0,84778.0,0.27817391]
[1744892754709,0.00840262,84779.0,84778.0,0.27817391]
[1744892754932,0.0031655,84779.0,84778.0,0.27817391]
[1744892755079,0.00840262,84779.0,84778.0,0.27817391]
[1744892755325,0.0031655,84779.0,84778.0,0.27817391]
[1744892755530,0.00840262,84779.0,84778.0,0.27817391]
[1744892755729,0.0031655,84779.0,84778.0,0.27817391]
[1744892755931,0.00840262,84779.0,84778.0,0.27817391]
[1744892756136,0.0031655,84779.0,84778.0,0.27817391]
[1744892756430,0.00840262,84779.0,84778.0,0.27817391]
[1744892756672,0.0031655,84779.0,84778.0,0.27817391]
[1744892758443,0.0031655,84779.0,84778.0,0.61817391]
[1744892760690,0.0031655,84779.0,84778.0,0.66477391]
[1744892760941,0.0031655,84779.0,84778.0,0.66577391]
[1744892761187,0.0031655,84779.0,84778.0,0.62017391]
[1744892768150,0.0031655,84779.0,84778.0,0.63471476]
[1744892772946,0.0031655,84779.0,84778.0,0.77047476]
[1744892778461,0.0031655,84779.0,84778.0,0.75593391]
[1744892778603,0.0031655,84779.0,84778.0,0.62017391]
[1744892778806,0.0031655,84779.0,84778.0,0.75593391]
[1744892779461,0.0031655,84779.0,84778.0,0.62017391]
[1744892791933,0.0031655,84779.0,84778.0,0.62117391]
[1744892796167,0.0031655,84779.0,84778.0,0.75769391]
[1744892799493,0.0031655,84779.0,84778.0,0.62117391]
[1744892804978,0.0031655,84779.0,84778.0,0.63571476]
[1744892809265,0.0031655,84779.0,84778.0,0.63576166]
[1744892811214,0.0031655,84779.0,84778.0,0.63476166]
[1744892811409,0.0031655,84779.0,84778.0,0.63376166]
[1744892811618,0.0031655,84779.0,84778.0,0.63476166]
[1744892813472,0.0031655,84779.0,84778.0,0.80490957]
[1744892813689,0.0031655,84779.0,84778.0,1.22370957]
[1744892814466,0.0031655,84779.0,84778.0,1.05156166]
[1744892814849,0.0031655,84779.0,84778.0,1.05656166]
[1744892815266,0.0031655,84779.0,84778.0,1.05156166]
[1744892815469,0.0031655,84779.0,84778.0,1.05656166]
[1744892815672,0.0031655,84779.0,84778.0,1.05856166]
[1744892818642,0.0031655,84779.0,84778.0,1.17800957]
[1744892820334,0.0031655,84779.0,84778.0,1.22480957]
[1744892820558,0.0031655,84779.0,84778.0,0.80600957]
[1744892822310,0.0031655,84779.0,84778.0,0.85590957]
[1744892822715,1e-08,84781.0,84780.0,0.59044554]
[1744892822938,1e-08,84781.0,84780.0,0.76562683]
[1744892823145,1e-08,84781.0,84780.0,0.79601044]
[1744892823296,0.0004214,84801.0,84794.0,0.23586574]
[1744892823495,0.00082159,84795.0,84794.0,0.78943168]
[1744892823942,0.00082159,84795.0,84794.0,0.79766506]
[1744892824530,0.00082159,84795.0,84794.0,0.80630592]
[1744892825158,0.00082159,84795.0,84794.0,0.80930592]
[1744892825591,0.00082159,84795.0,84794.0,0.81130592]
[1744892832949,0.00082159,84795.0,84794.0,1.24630592]
[1744892840751,0.0004214,84801.0,84796.0,0.59040103]
[1744892840950,0.00052259,84797.0,84796.0,0.70984894]
[1744892841181,0.00052259,84797.0,84796.0,0.73094827]
[1744892841499,0.00052259,84797.0,84796.0,0.73918165]
[1744892842094,0.00052259,84797.0,84796.0,0.7511595]
[1744892842320,0.00052259,84797.0,84796.0,0.7521595]
[1744892849853,0.05042259,84797.0,84796.0,0.38231056]
[1744892850051,0.09892259,84797.0,84796.0,0.27817074]
[1744892850585,0.0004214,84801.0,84797.0,0.57193481]
[1744892850843,0.0004214,84801.0,84797.0,0.58016819]
[1744892851341,0.0004214,84801.0,84797.0,0.60126752]
[1744892851545,0.0004214,84801.0,84797.0,0.59303414]
[1744892851966,0.0004214,84801.0,84797.0,0.60601199]
[1744892853489,0.0004214,84801.0,84797.0,0.37015459]
[1744892853490,0.01679245,84800.0,84797.0,0.37015459]
[1744892853697,0.33077601,84798.0,84797.0,0.37015459]
[1744892854179,0.33077601,84798.0,84797.0,0.36915459]
[1744892854390,0.33077601,84798.0,84797.0,0.36815459]
[1744892855223,0.33477601,84798.0,84797.0,0.36815459]
[1744892855427,0.33677601,84798.0,84797.0,0.36815459]
[1744892857396,0.1009214,84798.0,84797.0,0.36815459]
[1744892857767,0.33677601,84798.0,84797.0,0.36815459]
[1744892858520,0.1009214,84798.0,84797.0,0.36815459]
[1744892858943,0.33677601,84798.0,84797.0,0.36815459]
[1744892859817,0.1009214,84798.0,84797.0,0.36815459]
[1744892860891,0.33677601,84798.0,84797.0,0.36815459]
[1744892861322,0.1009214,84798.0,84797.0,0.36815459]
[1744892861935,0.1009214,84798.0,84797.0,0.60401199]
[1744892862837,0.1009214,84798.0,84797.0,0.36815459]
[1744892863051,0.1009214,84798.0,84797.0,0.60401199]
[1744892863764,0.33677601,84798.0,84797.0,0.34705526]
[1744892864195,0.1009214,84798.0,84797.0,0.34705526]
[1744892864598,0.1009214,84798.0,84797.0,0.33607741]
[1744892865229,0.33677601,84798.0,84797.0,0.33607741]
[1744892865996,0.45622392,84798.0,84797.0,0.33607741]
[1744892866223,0.46622392,84798.0,84797.0,0.33607741]
[1744892869617,0.46722392,84798.0,84797.0,0.33607741]
[1744892871486,0.46522392,84798.0,84797.0,0.33607741]
[1744892872702,0.46122392,84798.0,84797.0,0.33607741]
[1744892873003,0.46822392,84798.0,84797.0,0.33607741]
[1744892873163,0.46422392,84798.0,84797.0,0.33607741]
[1744892873595,0.46622392,84798.0,84797.0,0.33607741]
[1744892874022,0.46922392,84798.0,84797.0,0.33607741]
[1744892881470,0.37472392,84798.0,84797.0,0.33607741]
[1744892881670,0.37372392,84798.0,84797.0,0.33607741]
[1744892885049,0.2359186,84775.0,84774.0,0.0462]
[1744892885296,0.23592974,84771.0,84770.0,0.021]
[1744892885437,0.23592974,84771.0,84770.0,0.02110089]
[1744892885830,0.2359186,84775.0,84770.0,0.02110089]
[1744892885831,0.23591939,84775.0,84770.0,0.02110089]
[1744892886054,0.0117962,84773.0,84770.0,0.02110089]
[1744892886289,0.23592758,84772.0,84770.0,0.02110089]
[1744892886488,0.23592758,84772.0,84770.0,0.0341706]
[1744892886696,0.23592754,84772.0,84770.0,0.3741706]
[1744892887395,0.001,84772.0,84770.0,0.3741706]
[1744892887570,0.23692733,84772.0,84770.0,0.0341706]
[1744892887807,0.23592733,84772.0,84770.0,0.0341706]
[1744892888016,0.23592423,84773.0,84770.0,0.0341706]
[1744892888404,0.2359273,84772.0,84770.0,0.0341706]
[1744892888903,0.23592713,84772.0,84770.0,0.0341706]
[1744892889150,0.23592713,84772.0,84770.0,0.0351706]
[1744892889602,0.23592713,84772.0,84770.0,0.04388229]
[1744892889830,0.23592974,84771.0,84770.0,0.04388229]
[1744892891005,0.24772012,84774.0,84770.0,0.04288229]
[1744892891128,0.24772012,84774.0,84771.0,0.0466]
[1744892891475,0.23592547,84773.0,84771.0,0.0466]
[1744892893082,0.23592695,84772.0,84771.0,0.0466]
[1744892894564,0.23692695,84772.0,84771.0,0.0466]
[1744892898334,0.001,84772.0,84771.0,0.0466]
[1744892899073,0.001,84772.0,84771.0,0.62252974]
[1744892901203,0.001,84772.0,84771.0,0.34]
[1744892901411,0.23692695,84772.0,84771.0,0.34]
[1744892901613,0.001,84772.0,84771.0,0.34]
[1744892903303,0.001,84772.0,84771.0,0.57592974]
[1744892903689,0.001,84772.0,84771.0,0.34]
[1744892904303,0.001,84772.0,84770.0,0.04288229]
[1744892904712,0.001,84772.0,84770.0,0.27881368]
[1744892904934,0.2369278,84772.0,84770.0,0.27881368]
[1744892905227,0.23592974,84771.0,84770.0,0.02210089]
[1744892906561,0.35537765,84771.0,84770.0,0.02210089]
[1744892906773,0.36537765,84771.0,84770.0,0.02210089]
[1744892907871,0.36737765,84771.0,84770.0,0.02210089]
[1744892908928,0.36937765,84771.0,84770.0,0.02210089]
[1744892909335,0.41657765,84771.0,84770.0,0.02210089]
[1744892916524,0.47657765,84771.0,84770.0,0.02210089]
[1744892926905,0.47457765,84771.0,84770.0,0.02210089]
[1744892927461,0.47257765,84771.0,84770.0,0.02210089]
[1744892927680,0.47557765,84771.0,84770.0,0.02210089]
[1744892927852,0.47757765,84771.0,84770.0,0.02210089]
[1744892929060,0.47557765,84771.0,84770.0,0.02210089]
[1744892929538,0.47657765,84771.0,84770.0,0.02210089]
[1744892929946,0.48257765,84771.0,84770.0,0.02310089]
[1744892931417,0.48257765,84771.0,84770.0,0.02110089]
[1744892934759,0.43537765,84771.0,84770.0,0.02110089]
[1744892939731,0.43537765,84771.0,84770.0,0.02210089]
[1744892944929,0.43537765,84771.0,84770.0,0.00210089]
[1744892955102,0.42937765,84771.0,84770.0,0.00110089]
[1744892955485,0.42337765,84771.0,84770.0,0.00110089]
[1744892956058,0.41937765,84771.0,84770.0,0.00110089]
[1744892956369,0.41937765,84771.0,84770.0,0.04810089]
[1744892957018,0.42237765,84771.0,84770.0,0.04810089]
[1744892957422,0.067,84771.0,84770.0,0.28503341]
[1744892958464,0.063,84771.0,84770.0,0.28503341]
[1744892959376,0.06,84771.0,84770.0,0.28503341]
[1744892960335,0.061,84771.0,84770.0,0.28503341]
[1744892960761,0.062,84771.0,84770.0,0.28503341]
[1744892961175,0.061,84771.0,84770.0,0.28503341]
[1744892961348,0.062,84771.0,84770.0,0.28503341]
[1744892962423,0.061,84771.0,84770.0,0.28503341]
[1744892962958,0.06,84771.0,84770.0,0.28503341]
[1744892963180,0.061,84771.0,84770.0,0.28503341]
[1744892971697,0.061,84771.0,84770.0,0.28603341]
[1744892991265,0.061,84771.0,84770.0,0.28303341]
[1744892991489,0.061,84771.0,84770.0,0.28403341]
[1744892998182,0.061,84771.0,84770.0,0.23703341]
[1744893000476,0.061,84771.0,84770.0,0.81082217]
[1744893000792,0.061,84771.0,84770.0,0.67683341]
[1744893000987,0.061,84771.0,84770.0,0.62783341]
[1744893001645,0.061,84771.0,84770.0,0.63083341]
[1744893001842,0.061,84771.0,84770.0,0.64237426]
[1744893002243,0.061,84771.0,84770.0,0.69177426]
[1744893002452,0.06,84771.0,84770.0,0.81122217]
[1744893002850,0.06,84771.0,84770.0,0.81322217]
[1744893003080,0.1,84782.0,84781.0,0.63724276]
[1744893003257,0.1,84782.0,84781.0,0.68254276]
[1744893003478,0.1,84782.0,84781.0,0.80199067]
[1744893004323,0.0004214,84798.0,84797.0,0.23575811]
[1744893004522,0.0004214,84798.0,84797.0,0.23565877]
[1744893005240,0.0004214,84798.0,84797.0,0.25019962]
[1744893005868,0.0004214,84798.0,84797.0,0.23565877]
[1744893006769,0.0044214,84798.0,84797.0,0.23565877]
[1744893006982,0.0004214,84798.0,84797.0,0.23565877]
[1744893007378,0.23627601,84798.0,84797.0,0.001]
[1744893007585,0.0004214,84798.0,84797.0,0.003]
[1744893009246,0.0004214,84798.0,84797.0,0.002]
[1744893009453,0.0004214,84798.0,84797.0,0.2358574]
[1744893009587,0.0004214,84798.0,84797.0,0.2368574]
[1744893009789,0.0004214,84798.0,84797.0,0.001]
[1744893010194,0.0004214,84798.0,84797.0,0.2368574]
[1744893010699,0.0004214,84798.0,84797.0,0.2358574]
[1744893016576,0.0004214,84798.0,84796.0,0.045]
[1744893016804,0.01179328,84794.0,84791.0,0.34]
[1744893017010,0.01179287,84797.0,84791.0,0.34]
[1744893017180,0.01179287,84797.0,84791.0,0.58766778]
[1744893017405,0.01179314,84795.0,84791.0,0.58766778]
[1744893017604,0.2476558,84796.0,84793.0,0.34]
[1744893018014,0.011793,84796.0,84793.0,0.5758685]
[1744893018445,0.23586429,84795.0,84793.0,0.34]
[1744893018652,0.24765334,84796.0,84793.0,0.34]
[1744893018854,0.24765334,84796.0,84791.0,0.24766675]
[1744893019361,0.011793,84796.0,84793.0,0.34]
[1744893019575,0.011793,84796.0,84793.0,0.341]
[1744893019884,0.01179287,84797.0,84794.0,0.23586492]
[1744893020176,0.0004214,84798.0,84795.0,0.23586198]
[1744893020368,0.01221413,84798.0,84794.0,0.24765635]
[1744893020567,0.0004214,84798.0,84795.0,0.01179314]
[1744893021020,0.0004214,84798.0,84793.0,0.3615853]
[1744893021251,0.0004214,84798.0,84796.0,0.23585953]
[1744893021534,0.0004214,84798.0,84797.0,0.2358574]
[1744893021761,0.0004214,84798.0,84795.0,0.24765548]
[1744893022971,0.23585926,84797.0,84795.0,0.001]
[1744893023360,0.24806891,84798.0,84795.0,0.001]
[1744893023616,0.0004214,84798.0,84797.0,0.2358574]
[1744893024007,0.0004214,84798.0,84796.0,0.23585762]
[1744893024427,0.0004214,84798.0,84795.0,0.24865609]
[1744893025155,0.0004214,84798.0,84795.0,0.23686295]
[1744893025359,0.0004214,84798.0,84795.0,0.24865609]
[1744893025849,0.0004214,84798.0,84795.0,0.24765609]
[1744893026226,0.24765027,84797.0,84793.0,0.59645341]
[1744893026423,0.01179287,84797.0,84794.0,0.24765713]
[1744893026647,0.01179287,84797.0,84795.0,0.001]
[1744893027005,0.01179287,84797.0,84794.0,0.24765713]
[1744893027205,0.23627634,84798.0,84795.0,0.23586292]
[1744893027883,0.0117937,84791.0,84788.0,0.00010089]
[1744893028085,0.23587687,84790.0,84788.0,0.00010089]
[1744893028290,0.0117937,84791.0,84788.0,0.00010089]
[1744893028519,0.23587934,84790.0,84788.0,0.00010089]
[1744893028720,0.23587965,84789.0,84788.0,0.00010089]
[1744893029656,0.25793882,84789.0,84788.0,0.00010089]
[1744893030074,0.23587965,84789.0,84788.0,0.00010089]
[1744893030281,0.23587965,84789.0,84788.0,0.00110089]
[1744893030501,0.2476621,84793.0,84788.0,0.23698326]
[1744893030712,0.23587965,84789.0,84788.0,0.00110089]
[1744893031045,0.23587965,84789.0,84788.0,0.00010089]
[1744893033560,0.23687965,84789.0,84788.0,0.00010089]
[1744893036188,0.25893341,84789.0,84788.0,0.00010089]
[1744893036638,0.31483341,84789.0,84788.0,0.00010089]
[1744893037067,0.43428132,84789.0,84788.0,0.00010089]
[1744893038488,0.31483341,84789.0,84788.0,0.00010089]
[1744893038691,0.31483341,84789.0,84788.0,0.01204034]
[1744893038692,0.02305376,84789.0,84788.0,0.01204034]
[1744893038893,0.23687965,84789.0,84788.0,0.00010089]
[1744893039048,0.23587965,84789.0,84788.0,0.00010089]
[1744893039624,0.23787965,84789.0,84788.0,0.00010089]
[1744893040601,0.35732756,84789.0,84788.0,0.00010089]
[1744893042287,0.40662756,84789.0,84788.0,0.00010089]
[1744893042785,0.41662756,84789.0,84788.0,0.00010089]
[1744893043146,0.43866413,84789.0,84788.0,0.00010089]
[1744893043748,0.31921622,84789.0,84788.0,0.00010089]
[1744893044732,0.29717965,84789.0,84788.0,0.00010089]
[1744893044939,0.28717965,84789.0,84788.0,0.00010089]
[1744893045137,0.23787965,84789.0,84788.0,0.00010089]
[1744893049022,0.35732756,84789.0,84788.0,0.00010089]
[1744893050088,0.36732756,84789.0,84788.0,0.00010089]
[1744893052911,0.35732756,84789.0,84788.0,0.00010089]
[1744893054721,0.37938672,84789.0,84788.0,0.00010089]
[1744893056240,0.42758672,84789.0,84788.0,0.00010089]
[1744893057367,0.43758672,84789.0,84788.0,0.00010089]
[1744893057985,0.38938672,84789.0,84788.0,0.00010089]
[1744893059158,0.36732756,84789.0,84788.0,0.00010089]
[1744893060112,0.35732756,84789.0,84788.0,0.00010089]
[1744893061246,0.23787965,84789.0,84788.0,0.00110089]
[1744893061445,0.002,84789.0,84788.0,0.23698332]
[1744893061824,0.002,84789.0,84788.0,0.23798332]
[1744893062440,0.002,84789.0,84788.0,0.00210089]
[1744893063577,0.002,84789.0,84788.0,0.23798332]
[1744893067854,0.002,84789.0,84788.0,0.00210089]
[1744893068060,0.23787965,84789.0,84788.0,0.00210089]
[1744893068511,0.25995078,84789.0,84788.0,0.00210089]
[1744893069178,0.38939869,84789.0,84788.0,0.00210089]
[1744893069409,0.39767572,84789.0,84788.0,0.00210089]
[1744893070620,0.44287572,84789.0,84788.0,0.00210089]
[1744893071034,0.56432362,84789.0,84788.0,1e-08]
[1744893071248,0.56432362,84789.0,84763.0,0.000843]
[1744893071249,0.23594922,84764.0,84763.0,0.000843]
[1744893071485,0.23594922,84764.0,84763.0,0.00095459]
[1744893071840,0.36539713,84764.0,84763.0,0.00095459]
[1744893072471,0.36539713,84764.0,84759.0,1e-08]
[1744893072472,0.28286035,84760.0,84759.0,1e-08]
[1744893072678,0.58230826,84760.0,84759.0,1e-08]
[1744893074052,0.59130826,84760.0,84759.0,1e-08]
[1744893076039,0.64080826,84760.0,84759.0,1e-08]
[1744893076408,0.23596314,84759.0,84758.0,0.01990068]
[1744893076604,0.23597427,84755.0,84739.0,0.0008432]
[1744893076804,0.42542218,84755.0,84754.0,0.00129343]
[1744893077662,0.44738214,84755.0,84754.0,0.00129343]
[1744893078087,0.48043056,84755.0,84754.0,1e-08]
[1744893078515,0.23600212,84745.0,84744.0,1e-08]
[1744893078729,0.51545003,84745.0,84744.0,0.00012236]
[1744893079174,0.5373983,84745.0,84744.0,0.00012236]
[1744893079437,0.6373983,84745.0,84744.0,0.00012236]
[1744893079628,0.6835983,84745.0,84744.0,0.00012236]
[1744893079837,0.71764993,84745.0,84744.0,0.00012236]
[1744893080040,0.7459142,84745.0,84744.0,0.00012236]
[1744893080238,0.7366983,84745.0,84744.0,1e-08]
[1744893080435,0.7316983,84745.0,84744.0,1e-08]
[1744893080637,0.7940142,84745.0,84744.0,1e-08]
[1744893080965,0.23601604,84740.0,84739.0,1e-08]
[1744893081141,0.51546395,84740.0,84739.0,1e-08]
[1744893081364,0.5269931,84740.0,84739.0,1e-08]
[1744893082263,0.56104473,84740.0,84739.0,1e-08]
[1744893082466,0.5269931,84740.0,84739.0,1e-08]
[1744893083383,0.5329931,84740.0,84739.0,0.00100001]
[1744893083812,0.5379931,84740.0,84739.0,0.00100001]
[1744893086274,0.57204473,84740.0,84739.0,0.00100001]
[1744893086483,0.5379931,84740.0,84739.0,0.00100001]
[1744893087491,0.65744101,84740.0,84739.0,0.00100001]
[1744893087692,0.5379931,84740.0,84739.0,0.00100001]
[1744893087892,0.8779931,84740.0,84739.0,0.00100001]
[1744893088096,0.91204473,84740.0,84739.0,0.00100001]
[1744893088299,0.8779931,84740.0,84739.0,0.00100001]
[1744893088599,0.89986164,84740.0,84739.0,0.00100001]
[1744893088962,0.93391327,84740.0,84739.0,0.00100001]
[1744893089167,0.93391327,84740.0,84736.0,0.0008428]
[1744893089168,0.34,84737.0,84736.0,1e-08]
[1744893089375,0.85547231,84737.0,84736.0,1e-08]
[1744893089611,0.87734085,84737.0,84736.0,1e-08]
[1744893090396,0.88234085,84737.0,84736.0,1e-08]
[1744893091003,0.88634085,84737.0,84736.0,1e-08]
[1744893091202,0.86447231,84737.0,84736.0,1e-08]
[1744893091402,0.91377231,84737.0,84736.0,1e-08]
[1744893092508,0.93564736,84737.0,84736.0,1e-08]